fUST/lending_fUST_20251117
["ID","MTS","AMOUNT","RATE_DAILY","PERIOD"]
[394192167,1763368240034,-888.81,0.00016541,2]
[394192168,1763368240043,-888.81,0.00016541,2]
[394192169,1763368240054,-888.81,0.00016541,2]
[394192170,1763368240063,-888.81,0.00016541,2]
[394192171,1763368240073,-888.81,0.00016541,2]
[394192172,1763368240082,-888.81,0.00016541,2]
[394192173,1763368240093,-888.81,0.00016541,2]
[394192174,1763368240102,-888.81,0.00016541,2]
[394192175,1763368240111,-888.81,0.00016541,2]
[394192176,1763368240120,-888.81,0.00016541,2]
[394192177,1763368240131,-888.81,0.00016541,2]
[394192178,1763368240141,-889.04418685,0.00016541,2]
[394192179,1763368240151,-528.33926907,0.00016543,2]
[394192180,1763368240160,-333.64945345,0.00016543,2]
[394192181,1763368240170,-500.0,0.00016573,2]
[394192182,1763368240180,-501.98604669,0.00016573,2]
[394192183,1763368240190,-504.39729858,0.00016573,2]
[394192184,1763368240201,-495.28841905,0.00016573,2]
[394192185,1763368240211,-518.08160207,0.00016573,2]
[394192186,1763368240224,-500.0,0.00016573,2]
[394192187,1763368240235,-488.03765742,0.00016573,2]
[394192188,1763368240244,-501.81896579,0.00016573,2]
[394192189,1763368240254,-500.0,0.00016573,2]
[394192190,1763368240266,-502.26261043,0.00016573,2]
[394192191,1763368240276,-500.0,0.00016573,2]
[394192192,1763368240286,-502.8585748,0.00016573,2]
[394192193,1763368240295,-500.0,0.00016573,2]
[394192194,1763368240306,-161.01806223,0.00016573,2]
[394192195,1763368240316,-500.0,0.00016573,2]
[394192196,1763368240326,-500.0,0.00016573,2]
[394192197,1763368240337,-502.44158823,0.00016573,2]
[394192198,1763368240347,-500.0,0.00016573,2]
[394192199,1763368240356,-502.15661401,0.00016573,2]
[394192200,1763368240366,-267.34034832,0.00016573,2]
[394192201,1763368240375,-500.0,0.00016573,2]
[394192202,1763368240385,-500.0,0.00016573,2]
[394192203,1763368240395,-500.0,0.00016573,2]
[394192204,1763368240405,-500.0,0.00016573,2]
[394192205,1763368240415,-500.0,0.00016573,2]
[394192206,1763368240424,-502.5065032,0.00016573,2]
[394192207,1763368240433,-500.0,0.00016573,2]
[394192208,1763368240442,-500.0,0.00016573,2]
[394192209,1763368240452,-441.96562617,0.00016573,2]
[394192210,1763368240462,-500.0,0.00016573,2]
[394192211,1763368240472,-10000.0,0.00016573,2]
[394192212,1763368240482,-193.85341116,0.000167,2]
[394192213,1763368240492,-193.85341116,0.000167,2]
[394192214,1763368240501,-1000.0,0.00016744,2]
[394192215,1763368240511,-1000.0,0.00016744,2]
[394192216,1763368240520,-1000.0,0.00016744,2]
[394192217,1763368240529,-1000.0,0.00016744,2]
[394192218,1763368240539,-1000.0,0.00016744,2]
[394192219,1763368240548,-500.0,0.00016807,2]
[394192220,1763368240558,-2179.10462208,0.00016937,2]
[394192221,1763368240568,-503.85554989,0.00016973,2]
[394192222,1763368240578,-500.0,0.00016973,2]
[394192223,1763368240588,-500.0,0.00016973,2]
[394192224,1763368240597,-435.59980476,0.00016973,2]
[394192225,1763368240609,-500.4503771,0.00016973,2]
[394192226,1763368240618,-500.0,0.00016973,2]
[394192227,1763368240628,-501.3914242,0.00016973,2]
[394192228,1763368240638,-505.03306875,0.00016973,2]
[394192229,1763368240648,-500.0,0.00016973,2]
[394192230,1763368240657,-445.08248483,0.00016973,2]
[394192232,1763368240667,-500.0,0.00016973,2]
[394192233,1763368240676,-500.0,0.00016973,2]
[394192234,1763368240686,-429.52953356,0.00016973,2]
[394192236,1763368240696,-500.0,0.00016973,2]
[394192237,1763368240705,-500.0,0.00016973,2]
[394192238,1763368240715,-500.0,0.00016973,2]
[394192239,1763368240724,-500.0,0.00016973,2]
[394192240,1763368240733,-500.0,0.00016973,2]
[394192241,1763368240743,-500.0,0.00016973,2]
[394192242,1763368240753,-500.0,0.00016973,2]
[394192243,1763368240762,-500.0,0.00016973,2]
[394192244,1763368240771,-500.0,0.00016973,2]
[394192245,1763368240780,-502.86159398,0.00016973,2]
[394192246,1763368240790,-500.0,0.00016973,2]
[394192247,1763368240799,-500.0,0.00016973,2]
[394192248,1763368240809,-507.23857365,0.00016973,2]
[394192249,1763368240817,-500.0,0.00016973,2]
[394192250,1763368240826,-249.43248286,0.00016973,2]
[394192251,1763368240835,-500.0,0.00016973,2]
[394192252,1763368240844,-500.0,0.00016973,2]
[394192253,1763368240853,-500.0,0.00016973,2]
[394192254,1763368240863,-500.0,0.00016973,2]
[394192255,1763368240872,-500.0,0.00016973,2]
[394192256,1763368240881,-169.58130387,0.00016973,2]
[394192258,1763368240890,-500.0,0.00016973,2]
[394192259,1763368240900,-300.0,0.00016976,2]
[394192261,1763368240910,-300.0,0.00016976,2]
[394192262,1763368240919,-300.0,0.00016976,2]
[394192263,1763368240929,-300.0,0.00016976,2]
[394192264,1763368240939,-300.0,0.00016976,2]
[394192265,1763368240948,-300.0,0.00016976,2]
[394192266,1763368240958,-300.0,0.00016976,2]
[394192267,1763368240968,-300.0,0.00016976,2]
[394192268,1763368240978,-300.0,0.00016976,2]
[394192269,1763368240987,-300.0,0.00016976,2]
[394192270,1763368240997,-300.0,0.00016976,2]
[394192271,1763368241006,-300.0,0.00016976,2]
[394192272,1763368241016,-300.0,0.00016976,2]
[394192273,1763368241025,-300.0,0.00016976,2]
[394192274,1763368241035,-300.0,0.00016976,2]
[394192275,1763368241043,-600.0,0.00016976,2]
[394192276,1763368241053,-12962.04999538,0.00016981,2]
[394192277,1763368241063,-100000.0,0.0001699,2]
[394192278,1763368241072,-500.0,0.00017081,2]
[394192279,1763368241081,-1000.0,0.00017121,2]
[394192280,1763368241091,-501.53166973,0.00017121,2]
[394192281,1763368241101,-511.09051941,0.00017121,2]
[394192282,1763368241112,-502.92139257,0.00017121,2]
[394192283,1763368241121,-508.13254612,0.00017121,2]
[394192284,1763368241131,-1004.49475929,0.00017121,2]
[394192285,1763368241140,-1099.65177378,0.00017121,2]
[394192286,1763368241163,-1093.21413216,0.00017121,2]
[394192287,1763368241172,-1090.68055788,0.00017121,2]
[394192288,1763368241183,-1000.0,0.00017121,2]
[394192289,1763368241192,-1001.94711302,0.00017121,2]
[394192290,1763368241202,-436.00854889,0.00017121,2]
[394192291,1763368241211,-503.94861877,0.00017121,2]
[394192292,1763368241220,-325.78165932,0.00017121,2]
[394192293,1763368241230,-1000.0,0.00017121,2]
[394192294,1763368241239,-1000.0,0.00017121,2]
[394192295,1763368241249,-500.0,0.00017355,2]
[394192296,1763368241259,-347.0,0.00017465,2]
[394192297,1763368241272,-1000.0,0.00017521,2]
[394192298,1763368241282,-1000.0,0.00017521,2]
[394192299,1763368241291,-501.42486407,0.00017521,2]
[394192300,1763368241300,-1000.0,0.00017521,2]
[394192301,1763368241311,-509.45721812,0.00017521,2]
[394192302,1763368241320,-501.0503735,0.00017521,2]
[394192303,1763368241330,-1001.37329497,0.00017521,2]
[394192305,1763368241341,-501.54850908,0.00017521,2]
[394192306,1763368241350,-1001.19443095,0.00017521,2]
[394192308,1763368241359,-357.78598318,0.00017521,2]
[394192309,1763368241368,-1000.0,0.00017521,2]
[394192311,1763368241378,-1000.0,0.00017521,2]
[394192312,1763368241386,-1000.0,0.00017521,2]
[394192313,1763368241395,-500.0,0.00017629,2]
[394192314,1763368241404,-441.0,0.0001763,2]
[394192315,1763368241414,-1582.11436431,0.00017668,2]
[394192316,1763368241422,-1185.90415884,0.00017668,2]
[394192317,1763368241496,-1517.26996116,0.00017668,2]
[394192318,1763368241506,-513.64025914,0.00017668,2]
[394192319,1763368241515,-160.0,0.000179,2]
[394192320,1763368241524,-500.0,0.00017903,2]
[394192321,1763368241534,-7623.92,0.00017905,3]
[394192322,1763368241544,-3811.96,0.00017905,3]
[394192323,1763368241553,-1905.98,0.00017905,3]
[394192324,1763368241562,-953.0,0.00017905,3]
[394192325,1763368241571,-476.5,0.00017905,3]
[394192326,1763368241581,-27337.64169656,0.00018,2]
[394192327,1763368241591,-420.0,0.00018061,2]
[394192328,1763368241600,-1004.37558909,0.00018068,2]
[394192329,1763368241610,-1500.0,0.00018068,2]
[394192330,1763368241619,-1016.64132678,0.00018068,2]
[394192331,1763368241628,-504.70574074,0.00018068,2]
[394192332,1763368241638,-1500.0,0.00018068,2]
[394192333,1763368241648,-541.04800509,0.00018068,2]
[394192334,1763368241657,-1680.0,0.00018151,2]
[394192335,1763368241667,-500.0,0.00018177,2]
[394192336,1763368241676,-260.0,0.00018448,2]
[394192337,1763368241686,-500.0,0.00018451,2]
[394192338,1763368241695,-177.0,0.00018479,2]
[394192339,1763368241705,-1855.51592409,0.00018616,2]
[394192340,1763368241715,-2000.0,0.00018616,2]
[394192341,1763368241724,-720.0,0.00018673,2]
[394192342,1763368241734,-500.0,0.00018725,2]
[394192343,1763368241744,-302.57643837,0.000189,2]
[394192344,1763368241754,-384.13240175,0.00018951,2]
[394192345,1763368241764,-360.0,0.00018996,2]
[394192346,1763368241774,-500.0,0.00018999,2]
[394192347,1763368241783,-302.57643837,0.00019089,2]
[394192348,1763368241793,-1477.42487773,0.00019164,2]
[394192349,1763368241803,-500.0,0.00019273,2]
[394192350,1763368241812,-453.6532135,0.00019278,2]
[394192351,1763368241822,-460.0,0.00019544,2]
[394192352,1763368241832,-500.0,0.00019547,2]
[394192353,1763368241843,-587.0,0.00019736,2]
[394192354,1763368241852,-500.0,0.00019821,2]
[394192355,1763368241863,-981.0,0.00019933,2]
[394192356,1763368241873,-1152.0,0.0002,2]
[394192357,1763368241883,-2963.6142836,0.0002,20]
[394192358,1763368241893,-560.0,0.00020092,2]
[394192359,1763368241902,-500.0,0.00020095,2]
[394192360,1763368241912,-500.0,0.00020368,2]
[394192361,1763368241922,-204.0,0.00020479,2]
[394192362,1763368241931,-864.0,0.00020541,2]
[394192363,1763368241941,-660.0,0.0002064,2]
[394192364,1763368241951,-500.0,0.00020642,2]
[394192365,1763368241961,-500.0,0.00020916,2]
[394192366,1763368241970,-698.70674339,0.00021,10]
[394192367,1763368241981,-760.0,0.00021188,2]
[394192368,1763368241990,-500.0,0.0002119,2]
[394192369,1763368241999,-395.03358643,0.00021464,2]
[394192370,1763368242008,-384.13240175,0.00021545,2]
[394192371,1763368242017,-823.0,0.00021566,2]
[394192372,1763368242027,-860.0,0.00021736,2]
[394192373,1763368242036,-5276.04529583,0.00021857,2]
[394192374,1763368242046,-500.0,0.00021917,2]
[394192375,1763368242055,-960.0,0.00022284,2]
[394192376,1763368242064,-2000.0,0.00022303,7]
[394192377,1763368242074,-231.0,0.00022479,2]
[394192378,1763368242083,-1000.0,0.00022595,20]
[394192379,1763368242092,-14343.6,0.000226,7]
[394192380,1763368242101,-375.21,0.000226,7]
[394192381,1763368242111,-297.44,0.000226,14]
[394192382,1763368242120,-1060.0,0.00022832,2]
[394192383,1763368242130,-500.0,0.00023013,2]
[394192384,1763368242139,-166.481942,0.00023297,2]
[394192385,1763368242148,-863.32266703,0.00023379,2]
[394192386,1763368242157,-1152.0,0.00023566,2]
[394192387,1763368242166,-500.0,0.00024109,2]
[394192388,1763368242175,-384.13240175,0.00024138,2]
[394192389,1763368242184,-337376.32391761,0.00024142,2]
[394192390,1763368242192,-258.0,0.00024479,2]
[394192391,1763368242201,-116762.72740375,0.0002465,2]
[394192392,1763368242210,-500.0,0.00024773,2]
[394192393,1763368242219,-182.75279002,0.00024773,2]
[394192394,1763368242229,-502.73202336,0.00024773,2]
[394192395,1763368242238,-500.0,0.00024773,2]
[394192396,1763368242247,-500.0,0.00024773,2]
[394192397,1763368242257,-500.0,0.00024773,2]
[394192398,1763368242269,-500.0,0.00024773,2]
[394192399,1763368242278,-466.99895109,0.00024773,2]
[394192400,1763368242287,-500.0,0.00024773,2]
[394192401,1763368242298,-500.0,0.00024773,2]
[394192402,1763368242309,-507.90955875,0.00024773,2]
[394192403,1763368242318,-500.81735696,0.00024773,2]
[394192404,1763368242328,-501.96334487,0.00024773,2]
[394192405,1763368242337,-500.0,0.00024773,2]
[394192406,1763368242348,-16754.58798679,0.00024774,2]
[394192407,1763368242358,-323665.1885694,0.00024796,2]
[394192408,1763368242367,-151.0,0.00024796,7]
[394192409,1763368242376,-151.0,0.00024796,7]
[394192410,1763368242386,-151.0,0.00024796,7]
[394192411,1763368242396,-151.0,0.00024796,2]
[394192412,1763368242405,-151.0,0.00024796,2]
[394192413,1763368242415,-151.0,0.00024796,2]
[394192414,1763368242425,-152.278821,0.00024796,7]
[394192415,1763368242434,-152.278821,0.00024796,7]
[394192416,1763368242443,-152.278821,0.00024796,7]
[394192417,1763368242453,-152.278821,0.00024796,7]
[394192418,1763368242462,-229.347791,0.00024796,7]
[394192419,1763368242472,-229.347791,0.00024796,7]
[394192420,1763368242481,-229.347791,0.00024796,7]
[394192421,1763368242490,-229.347791,0.00024796,7]
[394192422,1763368242499,-151.0,0.00024796,7]
[394192423,1763368242508,-157.559401,0.00024796,7]
[394192424,1763368242518,-151.0,0.00024796,7]
[394192425,1763368242527,-151.0,0.00024796,7]
[394192426,1763368242535,-151.0,0.00024796,7]
[394192427,1763368242546,-200.802667,0.00024796,7]
[394192428,1763368242555,-1000.0,0.00024854,20]
[394192429,1763368242564,-244.0,0.00024854,20]
[394192430,1763368242573,-500.0,0.00024873,2]
[394192431,1763368242583,-150.0,0.00024873,2]
[394192432,1763368242592,-203.21851301,0.00024899,2]
[394192433,1763368242601,-151.0,0.000249,7]
[394192434,1763368242611,-151.0,0.000249,7]
[394192435,1763368242621,-151.0,0.000249,7]
[394192436,1763368242630,-151.0,0.000249,7]
[394192437,1763368242640,-151.0,0.000249,7]
[394192438,1763368242650,-151.0,0.000249,7]
[394192439,1763368242660,-151.0,0.000249,7]
[394192440,1763368242670,-151.0,0.000249,7]
[394192441,1763368242679,-151.0,0.000249,7]
[394192442,1763368242688,-151.0,0.000249,7]
[394192443,1763368242698,-483.010201,0.000249,7]
[394192444,1763368242707,-483.010201,0.000249,7]
[394192445,1763368242717,-483.010201,0.000249,7]
[394192446,1763368242727,-483.010201,0.000249,7]
[394192447,1763368242737,-151.0,0.000249,7]
[394192448,1763368242746,-151.0,0.000249,7]
[394192449,1763368242755,-157.673838,0.000249,7]
[394192450,1763368242763,-218.203867,0.000249,2]
[394192451,1763368242773,-151.0,0.000249,7]
[394192452,1763368242782,-151.0,0.000249,7]
[394192453,1763368242792,-2083.224997,0.000249,7]
[394192454,1763368242802,-2083.224997,0.000249,7]
[394192455,1763368242811,-2083.224997,0.000249,7]
[394192456,1763368242821,-2083.224997,0.000249,7]
[394192457,1763368242831,-299.77192,0.000249,7]
[394192458,1763368242903,-299.77192,0.000249,7]
[394192459,1763368242913,-299.77192,0.000249,7]
[394192460,1763368242924,-299.77192,0.000249,7]
[394192461,1763368242934,-151.0,0.000249,2]
[394192462,1763368242943,-151.0,0.000249,2]
[394192463,1763368242953,-151.0,0.000249,2]
[394192464,1763368242963,-152.278821,0.000249,7]
[394192465,1763368242972,-152.278821,0.000249,7]
[394192466,1763368242981,-152.278821,0.000249,7]
[394192467,1763368242990,-152.278821,0.000249,7]
[394192468,1763368242998,-229.347791,0.000249,7]
[394192469,1763368243008,-229.347791,0.000249,7]
[394192470,1763368243017,-229.347791,0.000249,7]
[394192471,1763368243027,-229.347791,0.000249,7]
[394192472,1763368243036,-151.0,0.000249,7]
[394192473,1763368243047,-630871.617331,0.000249,2]
[394192474,1763368243056,-151.0,0.000249,7]
[394192475,1763368243065,-151.0,0.000249,7]
[394192476,1763368243075,-151.0,0.000249,7]
[394192477,1763368243083,-151.0,0.000249,7]
[394192478,1763368243093,-1703.22796226,0.00025,2]
[394192479,1763368243136,-400.67432439,0.00025061,2]
[394192480,1763368243145,-160.0,0.00025092,2]
[394192481,1763368243155,-500.0,0.00025205,2]
[394192482,1763368243165,-164.0898945,0.00025321,2]
[394192483,1763368243176,-606.11024176,0.00025321,2]
[394192485,1763368243188,-274.0948081,0.00025321,2]
[394192487,1763368243198,-1001.47190717,0.00025321,2]
[394192489,1763368243207,-1000.0,0.00025321,2]
[394192491,1763368243216,-300.0,0.00025421,2]
[394192492,1763368243227,-755.0,0.00025752,2]
[394192493,1763368243238,-1500.0,0.00025868,2]
[394192494,1763368243249,-450.0,0.00025968,2]
[394192495,1763368243259,-500.0,0.00026301,2]
[394192496,1763368243274,-3402.114146,0.00026389,2]
[394192497,1763368243284,-2000.0,0.00026416,2]
[394192498,1763368243293,-285.0,0.00026479,2]
[394192499,1763368243303,-218.203867,0.00026556,2]
[394192500,1763368243312,-3402.114146,0.00026589,2]
[394192501,1763368243322,-384.13240175,0.00026732,2]
[394192502,1763368243331,-2000.0,0.0002692,7]
[394192503,1763368243343,-1931.38695596,0.00026964,2]
[394192504,1763368243353,-204.52253555,0.00027,2]
[394192505,1763368243363,-3402.114146,0.00027049,2]
[394192506,1763368243372,-168.77287582,0.00027095,2]
[394192507,1763368243381,-3402.114149,0.00027196,2]
[394192508,1763368243390,-5276.04529583,0.00027284,2]
[394192509,1763368243400,-1910.0873974,0.00027296,2]
[394192510,1763368243410,-168.77287582,0.00027329,17]
[394192511,1763368243420,-1000.0,0.0002734,30]
[394192512,1763368243430,-492.0,0.0002734,30]
[394192513,1763368243440,-1000.0,0.00027397,2]
[394192514,1763368243452,-1000.0,0.00027397,2]
[394192515,1763368243462,-1000.0,0.00027397,2]
[394192516,1763368243473,-346.41435785,0.00027397,2]
[394192517,1763368243483,-151.0,0.00027397,2]
[394192518,1763368243493,-500.0,0.00027397,2]
[394192519,1763368243503,-151.0,0.00027397,7]
[394192520,1763368243514,-151.0,0.00027397,7]
[394192521,1763368243522,-151.0,0.00027397,7]
[394192522,1763368243531,-151.0,0.00027397,7]
[394192523,1763368243540,-151.0,0.00027397,7]
[394192524,1763368243549,-151.0,0.00027397,7]
[394192525,1763368243558,-151.0,0.00027397,7]
[394192526,1763368243568,-160.028405,0.00027397,7]
[394192527,1763368243578,-151.0,0.00027397,7]
[394192529,1763368243587,-151.0,0.00027397,7]
[394192531,1763368243596,-151.0,0.00027397,7]
[394192532,1763368243605,-151.0,0.00027397,7]
[394192534,1763368243615,-151.0,0.00027397,7]
[394192536,1763368243625,-151.0,0.00027397,7]
[394192538,1763368243634,-151.0,0.00027397,7]
[394192539,1763368243644,-151.0,0.00027397,7]
[394192540,1763368243653,-151.0,0.00027397,7]
[394192541,1763368243664,-300.0,0.00027397,7]
[394192542,1763368243673,-300.0,0.00027397,7]
[394192543,1763368243682,-300.0,0.00027397,7]
[394192544,1763368243692,-300.0,0.00027397,7]
[394192545,1763368243701,-300.0,0.00027397,7]
[394192546,1763368243711,-300.0,0.00027397,7]
[394192547,1763368243720,-300.0,0.00027397,7]
[394192548,1763368243730,-300.0,0.00027397,7]
[394192549,1763368243740,-151.0,0.00027397,7]
[394192550,1763368243749,-151.0,0.00027397,7]
[394192551,1763368243759,-151.0,0.00027397,7]
[394192552,1763368243768,-151.0,0.00027397,7]
[394192553,1763368243777,-151.0,0.00027397,7]
[394192554,1763368243786,-151.0,0.00027397,7]
[394192555,1763368243795,-265.020009,0.00027397,7]
[394192556,1763368243804,-151.0,0.00027397,7]
[394192557,1763368243813,-151.0,0.00027397,7]
[394192558,1763368243823,-151.0,0.00027397,7]
[394192559,1763368243832,-155.455258,0.00027397,7]
[394192560,1763368243841,-151.0,0.00027397,7]
[394192561,1763368243851,-151.0,0.00027397,7]
[394192562,1763368243860,-151.0,0.00027397,7]
[394192563,1763368243870,-151.0,0.00027397,7]
[394192564,1763368243879,-238.818023,0.00027397,7]
[394192565,1763368243889,-162.30121,0.00027397,7]
[394192566,1763368243899,-151.0,0.00027397,7]
[394192568,1763368243909,-151.0,0.00027397,7]
[394192569,1763368243918,-151.0,0.00027397,7]
[394192570,1763368243927,-151.0,0.00027397,7]
[394192571,1763368243935,-151.0,0.00027397,7]
[394192572,1763368243944,-151.0,0.00027397,7]
[394192573,1763368243953,-151.0,0.00027397,7]
[394192574,1763368243963,-151.0,0.00027397,7]
[394192575,1763368243972,-151.0,0.00027397,7]
[394192576,1763368243981,-151.0,0.00027397,7]
[394192577,1763368243990,-151.0,0.00027397,7]
[394192578,1763368244000,-151.0,0.00027397,7]
[394192579,1763368244009,-157.611051,0.00027397,7]
[394192580,1763368244019,-151.0,0.00027397,7]
[394192581,1763368244028,-151.0,0.00027397,7]
[394192582,1763368244037,-271.274429,0.00027397,7]
[394192583,1763368244046,-151.0,0.00027397,7]
[394192584,1763368244055,-151.0,0.00027397,7]
[394192585,1763368244064,-153.240435,0.00027397,7]
[394192586,1763368244074,-151.0,0.00027397,7]
[394192587,1763368244083,-151.0,0.00027397,7]
[394192588,1763368244092,-151.0,0.00027397,7]
[394192589,1763368244102,-151.0,0.00027397,7]
[394192590,1763368244111,-151.0,0.00027397,7]
[394192591,1763368244120,-563.264741,0.00027397,7]
[394192592,1763368244130,-563.264741,0.00027397,7]
[394192593,1763368244140,-563.264741,0.00027397,7]
[394192594,1763368244150,-194.276307,0.00027397,7]
[394192595,1763368244159,-563.264741,0.00027397,7]
[394192596,1763368244168,-151.0,0.00027397,7]
[394192597,1763368244177,-194.276307,0.00027397,7]
[394192598,1763368244241,-194.276307,0.00027397,7]
[394192599,1763368244256,-151.0,0.00027397,7]
[394192600,1763368244269,-194.276307,0.00027397,7]
[394192601,1763368244279,-151.0,0.00027397,7]
[394192602,1763368244290,-283.082972,0.00027397,7]
[394192603,1763368244301,-151.0,0.00027397,7]
[394192604,1763368244309,-151.0,0.00027397,7]
[394192605,1763368244318,-263.634693,0.00027397,7]
[394192606,1763368244329,-263.634693,0.00027397,7]
[394192607,1763368244341,-263.634693,0.00027397,7]
[394192608,1763368244351,-263.634693,0.00027397,7]
[394192609,1763368244361,-208.288984,0.00027397,7]
[394192610,1763368244370,-151.0,0.00027397,7]
[394192611,1763368244380,-208.288984,0.00027397,7]
[394192612,1763368244389,-151.0,0.00027397,7]
[394192613,1763368244398,-208.288984,0.00027397,7]
[394192614,1763368244407,-151.0,0.00027397,7]
[394192615,1763368244416,-208.288984,0.00027397,7]
[394192616,1763368244426,-151.0,0.00027397,7]
[394192617,1763368244435,-151.0,0.00027397,7]
[394192618,1763368244444,-151.0,0.00027397,7]
[394192619,1763368244453,-151.0,0.00027397,7]
[394192620,1763368244463,-151.0,0.00027397,7]
[394192621,1763368244473,-151.0,0.00027397,7]
[394192622,1763368244483,-151.0,0.00027397,7]
[394192623,1763368244493,-151.0,0.00027397,7]
[394192624,1763368244503,-151.0,0.00027397,7]
[394192625,1763368244513,-151.0,0.00027397,7]
[394192626,1763368244523,-151.0,0.00027397,7]
[394192627,1763368244532,-151.0,0.00027397,7]
[394192628,1763368244542,-151.0,0.00027397,7]
[394192629,1763368244552,-151.0,0.00027397,7]
[394192630,1763368244562,-151.0,0.00027397,7]
[394192631,1763368244571,-213.646912,0.00027397,7]
[394192632,1763368244581,-151.0,0.00027397,7]
[394192633,1763368244590,-213.646912,0.00027397,7]
[394192634,1763368244600,-165.809436,0.00027397,7]
[394192635,1763368244610,-213.646912,0.00027397,7]
[394192636,1763368244620,-213.646912,0.00027397,7]
[394192637,1763368244629,-151.0,0.00027397,7]
[394192638,1763368244640,-151.0,0.00027397,7]
[394192639,1763368244650,-151.0,0.00027397,7]
[394192640,1763368244660,-151.0,0.00027397,7]
[394192641,1763368244670,-151.0,0.00027397,7]
[394192642,1763368244680,-268.410031,0.00027397,7]
[394192643,1763368244689,-151.0,0.00027397,7]
[394192644,1763368244699,-151.0,0.00027397,7]
[394192645,1763368244709,-151.0,0.00027397,7]
[394192646,1763368244718,-151.0,0.00027397,7]
[394192647,1763368244727,-151.0,0.00027397,7]
[394192648,1763368244737,-151.0,0.00027397,7]
[394192649,1763368244747,-151.0,0.00027397,7]
[394192650,1763368244756,-151.0,0.00027397,7]
[394192651,1763368244765,-151.0,0.00027397,7]
[394192652,1763368244775,-151.0,0.00027397,7]
[394192653,1763368244784,-151.0,0.00027397,7]
[394192654,1763368244793,-190.782203,0.00027397,7]
[394192655,1763368244803,-151.0,0.00027397,7]
[394192656,1763368244811,-151.0,0.00027397,7]
[394192657,1763368244820,-151.0,0.00027397,7]
[394192658,1763368244829,-257.736514,0.00027397,7]
[394192659,1763368244839,-151.0,0.00027397,7]
[394192660,1763368244848,-151.0,0.00027397,7]
[394192661,1763368244857,-2012.364292,0.00027397,7]
[394192662,1763368244867,-2012.364292,0.00027397,7]
[394192663,1763368244877,-151.0,0.00027397,7]
[394192664,1763368244886,-238.968027,0.00027397,7]
[394192665,1763368244896,-2012.364292,0.00027397,7]
[394192666,1763368244905,-238.968027,0.00027397,7]
[394192667,1763368244916,-151.0,0.00027397,7]
[394192668,1763368244926,-2012.364292,0.00027397,7]
[394192669,1763368244935,-230.758235,0.00027397,7]
[394192670,1763368244944,-238.968027,0.00027397,7]
[394192671,1763368244954,-151.0,0.00027397,7]
[394192672,1763368244963,-230.758235,0.00027397,7]
[394192673,1763368244972,-238.968027,0.00027397,7]
[394192674,1763368244981,-230.758235,0.00027397,7]
[394192675,1763368244991,-230.758235,0.00027397,7]
[394192676,1763368245000,-151.0,0.00027397,7]
[394192677,1763368245010,-151.0,0.00027397,7]
[394192678,1763368245019,-151.0,0.00027397,7]
[394192679,1763368245027,-151.0,0.00027397,7]
[394192680,1763368245038,-151.0,0.00027397,7]
[394192681,1763368245048,-151.0,0.00027397,7]
[394192682,1763368245058,-243.841826,0.00027397,7]
[394192683,1763368245067,-243.841826,0.00027397,7]